bitfinex-derivatives/quotes_SOLF0:USTF0_20260105
["timestamp","ask_amount","ask_price","bid_price","bid_amount"]
[1767616449861,6.96118785,135.5,135.44,0.04687156]
[1767616450356,0.31518785,135.49,135.44,0.04687156]
[1767616451659,6.6467,135.48,135.44,0.04687156]
[1767616453264,0.31518785,135.49,135.44,0.04687156]
[1767616453752,0.31518785,135.48,135.44,0.04687156]
[1767616454560,6.96178785,135.48,135.44,0.04687156]
[1767616456468,6.96228785,135.47,135.41,6.97376736]
[1767616456670,7.0113892,135.47,135.41,6.97376736]
[1767616458266,0.31518785,135.46,135.41,6.97376736]
[1767616459564,6.96288785,135.46,135.41,0.32376736]
[1767616459967,6.96288785,135.46,135.42,0.04942448]
[1767616461865,0.31518785,135.46,135.42,0.04942448]
[1767616463679,6.96278785,135.46,135.42,0.04942448]
[1767616463973,9.16339285,135.46,135.42,0.04942448]
[1767616466477,0.31518785,135.45,135.42,0.04942448]
[1767616466671,0.04910135,135.47,135.32,103.5114]
[1767616466672,2.51579285,135.44,135.37,6.6517]
[1767616466872,2.51579285,135.44,135.37,6.97546736]
[1767616467579,9.16439285,135.44,135.37,6.97546736]
[1767616467981,0.04822161,135.42,135.37,6.97546736]
[1767616472184,2.58712364,135.42,135.36,6.6525]
[1767616473584,9.23672364,135.42,135.36,6.6525]
[1767616474382,7.03611864,135.42,135.36,6.6525]
[1767616474580,2.200605,135.41,135.36,6.6525]
[1767616475880,0.33829703,135.4,135.35,6.99213977]
[1767616476184,0.33829703,135.4,135.35,0.33913977]
[1767616476582,6.98889703,135.4,135.34,6.6534]
[1767616476786,0.04706939,135.39,135.34,6.6534]
[1767616476988,0.04706939,135.39,135.34,6.99253977]
[1767616477581,2.58597142,135.39,135.34,6.99253977]
[1767616478289,9.23717142,135.39,135.34,0.33913977]
[1767616479790,7.03656642,135.39,135.34,0.33913977]
[1767616484692,0.04706939,135.39,135.34,6.99243977]
[1767616485193,0.04706939,135.39,135.35,0.33913977]
[1767616494989,0.04706939,135.39,135.34,6.6533]
[1767616495194,0.04706939,135.39,135.34,0.31935507]
[1767616495195,6.69826939,135.39,135.34,0.31935507]
[1767616501998,0.04706939,135.39,135.34,6.97285507]
[1767616505305,7.01872569,135.39,135.34,0.31935507]
[1767616510704,7.01872569,135.39,135.35,0.04908244]
[1767616516404,0.36762569,135.39,135.35,0.04908244]
[1767616518812,7.01882569,135.39,135.35,0.04908244]
[1767616519104,0.36762569,135.39,135.32,0.33060333]
[1767616519312,0.3205563,135.37,135.32,0.33060333]
[1767616519811,6.9726563,135.37,135.32,0.33060333]
[1767616520402,0.05049418,135.36,135.32,0.33060333]
[1767616523012,0.05049418,135.36,135.31,6.6545]
[1767616523214,0.37105048,135.36,135.31,6.6545]
[1767616523511,0.37105048,135.36,135.31,6.98510333]
[1767616523710,0.3205563,135.38,135.33,0.33060333]
[1767616523910,0.3205563,135.4,135.33,0.33060333]
[1767616524507,0.3205563,135.4,135.36,6.6525]
[1767616525119,0.04734785,135.39,135.36,6.6525]
[1767616527510,0.04734785,135.39,135.35,0.33060333]
[1767616527710,0.04734785,135.39,135.34,6.6532]
[1767616527912,0.36790415,135.39,135.34,6.6532]
[1767616531912,0.36790415,135.39,135.34,6.98644268]
[1767616532216,0.04734785,135.39,135.36,0.33324268]
[1767616532715,0.33953354,135.41,135.36,0.33324268]
[1767616533014,0.05266054,135.39,135.36,6.98564268]
[1767616535019,0.05266054,135.39,135.36,0.33324268]
[1767616535318,0.05266054,135.39,135.34,6.98634268]
[1767616535719,0.05266054,135.39,135.35,0.33324268]
[1767616537014,0.05266054,135.39,135.34,6.6531]
[1767616539020,0.05266054,135.39,135.34,6.98634268]
[1767616543820,0.05266054,135.39,135.35,0.33324268]
[1767616554940,6.65,135.42,135.36,0.33470703]
[1767616555242,0.33771937,135.44,135.36,0.33470703]
[1767616555444,5.58568856,135.43,135.36,0.33470703]
[1767616555634,6.98631937,135.44,135.38,0.33470703]
[1767616556030,0.33771937,135.44,135.38,0.33470703]
[1767616557645,0.33771937,135.44,135.38,6.98610703]
[1767616558843,6.98651937,135.44,135.38,0.33470703]
[1767616560236,0.33771937,135.43,135.38,0.33470703]
[1767616562041,6.98681937,135.43,135.38,0.33470703]
[1767616562247,6.98681937,135.43,135.37,6.652]
[1767616562650,6.99074764,135.42,135.36,6.97878908]
[1767616564047,0.34114764,135.42,135.36,6.97878908]
[1767616564251,9.19217914,135.43,135.37,0.32628908]
[1767616565348,0.05305334,135.41,135.39,0.05625136]
[1767616571362,6.70325334,135.41,135.35,0.32628908]
[1767616571562,0.34114764,135.4,135.35,0.32628908]
[1767616571950,0.34114764,135.39,135.34,6.6531]
[1767616572156,0.34114764,135.39,135.33,6.98028908]
[1767616572357,0.34114764,135.39,135.33,0.32628908]
[1767616572563,2.54307914,135.39,135.33,0.32628908]
[1767616572766,0.05154233,135.37,135.33,0.32628908]
[1767616581387,0.05154233,135.37,135.35,0.32628908]
[1767616581564,2.54307914,135.41,135.35,0.32628908]
[1767616582164,0.34114764,135.4,135.35,0.32628908]
[1767616582568,0.34114764,135.4,135.35,6.97918908]
[1767616591177,2.53109563,135.39,135.34,6.6535]
[1767616591365,2.53109563,135.39,135.34,6.99580693]
[1767616592578,0.32916413,135.39,135.34,6.99580693]
[1767616592779,2.53109563,135.39,135.34,6.99580693]
[1767616596781,2.2019315,135.39,135.35,0.34230693]
[1767616596977,2.2019315,135.4,135.35,6.99530693]
[1767616598269,2.2019315,135.4,135.35,0.34230693]
[1767616598476,2.53109563,135.4,135.35,0.34230693]
[1767616599583,6.6511,135.39,135.35,0.34230693]
[1767616602285,6.98026413,135.39,135.33,0.34230693]
[1767616603588,9.18219563,135.39,135.33,0.34230693]
[1767616604695,9.18219563,135.39,135.34,0.34230693]
[1767616605691,6.98026413,135.39,135.34,0.34230693]
[1767616619403,0.32916413,135.39,135.34,6.99560693]
[1767616619605,6.96518419,135.41,135.35,0.32447612]
[1767616619901,5.59118861,135.4,135.35,0.32447612]
[1767616620100,6.96518419,135.41,135.35,0.32447612]
[1767616620803,6.96518419,135.41,135.35,6.97727612]
[1767616621600,0.31458419,135.41,135.35,6.97727612]
[1767616621800,0.31458419,135.41,135.36,0.32588137]
[1767616622001,0.32752894,135.43,135.37,0.32588137]
[1767616622192,0.32752894,135.42,135.34,0.32588137]
[1767616622393,0.32752894,135.42,135.35,6.6526]
[1767616622693,0.32752894,135.4,135.35,6.6526]
[1767616622898,0.32752894,135.4,135.34,0.32588137]
[1767616624606,0.32752894,135.39,135.34,6.97938137]
[1767616626508,0.32752894,135.38,135.33,6.654]
[1767616626705,0.32752894,135.38,135.32,0.32588137]
[1767616627710,0.32752894,135.38,135.33,0.32588137]
[1767616628403,0.32752894,135.38,135.33,6.97988137]
[1767616631007,6.97922894,135.38,135.33,0.32588137]
[1767616631902,0.05162434,135.37,135.34,0.05134411]
[1767616632911,0.37915328,135.37,135.34,0.05134411]
[1767616635106,0.37915328,135.37,135.31,0.32588137]
[1767616636709,7.03125328,135.37,135.31,6.98088137]
[1767616640720,6.98002894,135.36,135.31,0.32588137]
[1767616641022,0.32752894,135.35,135.29,6.98138137]
[1767616641818,0.04741876,135.33,135.3,0.32588137]
[1767616642324,0.04741876,135.33,135.29,6.98138137]
[1767616642618,0.04741876,135.33,135.29,0.32588137]
[1767616643421,0.3749477,135.33,135.28,30.24813808]
[1767616643624,0.3749477,135.33,135.27,0.32588137]
[1767616644716,0.3749477,135.33,135.27,6.98268137]
[1767616646426,7.0289477,135.33,135.27,6.98268137]
[1767616646921,6.70141876,135.33,135.28,0.32588137]
[1767616653226,0.04741876,135.33,135.28,6.98218137]
[1767616662130,0.04741876,135.33,135.3,0.32042673]
[1767616662329,0.31115073,135.36,135.3,0.32042673]
[1767616662630,6.96375073,135.36,135.3,6.97582673]
[1767616662831,0.31115073,135.35,135.3,6.97582673]
[1767616663134,0.31115073,135.35,135.28,3.44157125]
[1767616663135,0.31115073,135.35,135.28,6.6561]
[1767616663433,0.31115073,135.35,135.28,6.97652673]
[1767616664528,6.6537,135.34,135.28,6.97652673]
[1767616665531,0.31115073,135.33,135.28,6.97652673]
[1767616665732,0.31115073,135.32,135.27,6.657]
[1767616666431,0.05255924,135.31,135.27,6.657]
[1767616666633,0.05255924,135.31,135.27,6.97742673]
[1767616671344,0.05255924,135.31,135.28,6.97672673]
[1767616672543,0.05255924,135.31,135.29,0.31917476]
[1767616675941,6.99412735,135.35,135.3,0.31917476]
[1767616681255,0.32627241,135.34,135.29,6.70412257]
[1767616681442,0.32627241,135.34,135.29,0.04832257]
[1767616681443,0.32627241,135.33,135.29,0.04832257]
[1767616692852,0.32627241,135.33,135.29,6.70422257]
[1767616693661,0.32627241,135.35,135.3,6.9955136]
[1767616693851,87.32,135.39,135.3,6.9955136]
[1767616693852,0.32627241,135.37,135.31,0.3401136]
[1767616694657,0.32627241,135.37,135.33,0.05238611]
[1767616699057,0.32627241,135.36,135.33,0.05238611]
[1767616699353,2.5862035,135.36,135.3,6.6551]
[1767616699554,0.32627241,135.35,135.3,6.6551]
[1767616700155,0.32627241,135.35,135.3,6.9952136]
[1767616705662,8.91263109,135.36,135.28,0.3401136]
[1767616705663,2.53006756,135.34,135.28,0.3401136]
[1767616705971,0.32627241,135.33,135.26,0.3401136]
[1767616706370,0.04718668,135.32,135.28,6.6564]
[1767616707972,0.04718668,135.32,135.27,6.9968136]
[1767616709676,7.02815909,135.32,135.27,0.3401136]
[1767616710672,0.37345909,135.32,135.27,0.3401136]
[1767616712376,0.37345909,135.32,135.28,0.0508962]
[1767616721781,0.37345909,135.32,135.28,6.7072962]
[1767616729301,0.37345909,135.32,135.28,0.0508962]
[1767616732001,7.02795909,135.32,135.28,0.0508962]
[1767616733805,0.31727607,135.31,135.28,0.0508962]
[1767616740402,0.31727607,135.31,135.22,120.35128516]
[1767616740403,0.31727607,135.3,135.22,0.32225334]
[1767616741308,0.31727607,135.3,135.25,0.33588746]
[1767616741698,0.05009788,135.27,135.25,0.33588746]
[1767616759729,0.05009788,135.27,135.23,6.99478746]
[1767616759923,0.37178409,135.27,135.19,0.33588746]
[1767616760229,0.37178409,135.27,135.21,0.33588746]
[1767616760625,0.32168621,135.27,135.21,0.33588746]
[1767616760826,0.32168621,135.25,135.19,0.33588746]
[1767616761127,0.37419792,135.25,135.17,0.33588746]
[1767616761317,0.32168621,135.22,135.17,0.33588746]
[1767616761926,0.05555624,135.21,135.17,0.33588746]
[1767616762527,0.05555624,135.21,135.16,6.6624]
[1767616762828,0.05555624,135.21,135.16,6.99828746]
[1767616767219,0.37724245,135.21,135.11,0.33588746]
[1767616767426,0.05555624,135.21,135.13,0.33588746]
[1767616767729,0.32168621,135.22,135.15,0.33588746]
[1767616768029,94.0389,135.24,135.15,0.33588746]
[1767616768030,0.32168621,135.24,135.15,0.33588746]
[1767616768434,0.32168621,135.24,135.15,6.99828746]
[1767616768621,0.32168621,135.24,135.15,0.33588746]
[1767616768818,0.32168621,135.22,135.15,0.33588746]
[1767616770825,6.6594,135.23,135.15,0.33588746]
[1767616771131,7.00128479,135.23,135.15,0.33588746]
[1767616772328,7.00128479,135.23,135.17,0.34124525]
[1767616773134,0.34188479,135.23,135.17,7.00304525]
[1767616776037,7.00098479,135.23,135.17,0.34124525]
[1767616776343,0.34188479,135.22,135.17,0.34124525]
[1767616776935,7.00138479,135.22,135.17,0.34124525]
[1767616777136,0.34188479,135.21,135.15,0.34124525]
[1767616778345,7.00178479,135.21,135.15,0.34124525]
[1767616778938,0.34188479,135.19,135.14,7.00414525]
[1767616779142,0.34188479,135.19,135.14,0.34124525]
[1767616780137,0.34188479,135.18,135.12,0.34124525]
[1767616781545,7.00338479,135.18,135.12,7.00554525]
[1767616782244,7.00378479,135.17,135.1,7.00614525]
[1767616782549,0.34188479,135.17,135.1,7.00614525]
[1767616782849,7.00428479,135.17,135.1,7.00614525]
[1767616783049,0.34188479,135.16,135.1,0.34124525]
[1767616783448,6.6635,135.14,135.08,0.34124525]
[1767616784250,6.664,135.13,135.08,0.34124525]
[1767616784446,0.34188479,135.14,135.08,0.34124525]
[1767616785550,7.00528479,135.14,135.08,0.34124525]
[1767616787149,7.00528479,135.14,135.08,7.00744525]
[1767616787150,0.34188479,135.14,135.08,7.00744525]
[1767616787349,6.6628,135.16,135.09,0.34124525]
[1767616787350,0.34188479,135.15,135.09,0.34124525]
[1767616787852,97.52768516,135.17,135.09,0.34124525]
[1767616788157,7.00418479,135.17,135.09,0.34124525]
[1767616790453,0.34188479,135.17,135.11,6.6648]
[1767616791444,0.34188479,135.17,135.12,6.6643]
[1767616792648,0.34188479,135.17,135.11,7.00212348]
[1767616795463,87.76204261,135.19,135.13,0.33732348]
[1767616795953,87.76204261,135.19,135.14,6.6634]
[1767616796460,0.34204261,135.19,135.14,6.6634]
[1767616797156,0.34204261,135.19,135.13,7.00112348]
[1767616797753,0.34204261,135.19,135.14,6.6634]
[1767616798956,96.65047307,135.22,135.16,0.33732348]
[1767616800149,96.65047307,135.22,135.16,6.99962348]
[1767616800350,96.65047307,135.22,135.14,2.20873046]
[1767616800351,7.00074261,135.24,135.17,0.33732348]
[1767616800559,108.57098794,135.25,135.18,0.33732348]
[1767616800956,108.90039105,135.25,135.18,0.33732348]
[1767616801351,28.11839105,135.25,135.18,6.99872348]
[1767616803958,28.11839105,135.25,135.19,0.32652576]
[1767616804562,0.04991596,135.23,135.19,0.32652576]
[1767616804866,0.04991596,135.23,135.17,0.32652576]
[1767616805164,0.37931907,135.23,135.17,0.32652576]
[1767616806258,0.32940311,135.21,135.15,0.32652576]
[1767616807357,0.05154244,135.19,135.15,0.32652576]
[1767616807564,0.05154244,135.19,135.15,6.98932576]
[1767616807760,0.05154244,135.19,135.16,0.32652576]
[1767616807966,87.74940311,135.23,135.16,0.32652576]
[1767616808157,87.74940311,135.23,135.16,0.37914823]
[1767616808467,0.32940311,135.23,135.17,6.98822576]
[1767616810068,0.32940311,135.23,135.17,0.32652576]
[1767616810267,0.32940311,135.22,135.16,0.05262247]
[1767616811571,6.66,135.21,135.16,0.05262247]
[1767616812778,6.98940311,135.21,135.16,0.05262247]
[1767616812971,0.32940311,135.2,135.16,0.05262247]
[1767616813362,2.53813357,135.22,135.16,0.05262247]
[1767616814678,9.19763357,135.22,135.16,6.71492247]
[1767616815285,9.19763357,135.22,135.16,0.05262247]
[1767616815286,0.32940311,135.21,135.16,0.05262247]
[1767616815682,0.32940311,135.2,135.16,0.05262247]
[1767616816887,6.98980311,135.2,135.16,0.05262247]
[1767616823092,9.19853357,135.2,135.16,0.05262247]
[1767616827194,6.6609,135.19,135.16,0.05262247]
[1767616829989,6.99030311,135.19,135.16,0.05262247]
[1767616832696,0.32940311,135.19,135.16,0.05262247]
[1767616856605,6.99070311,135.19,135.16,0.05262247]
[1767616856810,5.94256385,135.18,135.13,0.32674087]
[1767616857011,0.33766486,135.18,135.13,0.32674087]
[1767616857412,0.33766486,135.16,135.11,0.32449052]
[1767616858111,0.05133679,135.15,135.09,0.32449052]
[1767616859605,0.05133679,135.15,135.1,6.98959052]
[1767616861812,0.05133679,135.15,135.11,6.98539866]
[1767616865918,0.05133679,135.15,135.11,0.32069866]
[1767616867113,0.37449713,135.15,135.09,6.98609866]
[1767616867822,7.03739713,135.15,135.09,6.98609866]
[1767616868910,0.32316034,135.14,135.09,6.98609866]
[1767616870121,6.98666034,135.14,135.07,6.98709866]
[1767616870321,0.32316034,135.13,135.07,0.32069866]
[1767616871223,6.98716034,135.13,135.07,0.32069866]
[1767616871918,0.32316034,135.13,135.08,0.32069866]
[1767616872425,0.05264185,135.12,135.08,0.32069866]
[1767616873928,0.05264185,135.12,135.09,0.32069866]
[1767616875524,0.05264185,135.12,135.09,6.98639866]
[1767616878029,0.32316034,135.15,135.1,6.98579866]
[1767616878227,94.1024,135.16,135.11,0.32069866]
[1767616878620,6.6624,135.16,135.11,0.32069866]
[1767616879626,6.6624,135.16,135.12,0.04986116]
[1767616881433,6.6629,135.15,135.09,6.98649866]
[1767616881637,3.45322709,135.16,135.07,0.32069866]
[1767616881638,0.32316034,135.14,135.07,0.32069866]
[1767616882531,6.98656034,135.14,135.08,6.6663]
[1767616882739,6.98656034,135.14,135.08,6.98699866]
[1767616883628,0.05046495,135.12,135.08,6.98699866]
[1767616884637,0.05046495,135.12,135.09,0.32069866]
[1767616885939,0.32316034,135.16,135.1,0.32069866]
[1767616887330,0.32316034,135.16,135.1,6.98599866]
[1767616888037,10.11562709,135.17,135.12,0.32069866]
[1767616888038,6.6624,135.17,135.12,0.32069866]
[1767616888826,0.32316034,135.18,135.13,0.37227371]
[1767616889144,87.78316034,135.2,135.13,0.37227371]
[1767616889338,94.44356034,135.2,135.14,0.32069866]
[1767616889844,6.98356034,135.2,135.14,0.32069866]
[1767616891338,0.31997921,135.22,135.15,0.31098887]
[1767616892233,0.31997921,135.22,135.17,0.05060765]
[1767616892433,0.31997921,135.22,135.17,0.36159652]
[1767616892635,87.77997921,135.24,135.17,0.36159652]
[1767616892934,0.31997921,135.24,135.17,0.36159652]
[1767616893546,6.97847921,135.24,135.17,7.02339652]
[1767616894245,0.31997921,135.23,135.17,7.02339652]
[1767616895847,0.31997921,135.22,135.17,7.02339652]
[1767616897942,0.31997921,135.24,135.18,6.97228887]
[1767616898435,6.97847921,135.24,135.18,0.31098887]
[1767616898638,0.31997921,135.23,135.16,0.31098887]
[1767616899549,0.31997921,135.23,135.17,6.6618]
[1767616900541,0.31997921,135.22,135.16,0.31098887]
[1767616902550,6.97947921,135.22,135.16,0.31098887]
[1767616905141,0.31997921,135.21,135.16,0.31098887]
[1767616907053,0.04754959,135.2,135.17,0.04814659]
[1767616936679,6.70794959,135.2,135.15,6.6629]
[1767616936885,9.2447629,135.2,135.15,6.6629]
[1767616937076,9.2447629,135.2,135.14,0.33017812]
[1767616937986,2.53681331,135.16,135.09,0.33017812]
[1767616938688,0.05416284,135.14,135.09,0.33017812]
[1767616939986,2.53681331,135.17,135.1,0.33017812]
[1767616940383,0.32862532,135.19,135.13,0.33017812]
[1767616940592,2.53681331,135.19,135.13,0.33017812]
[1767616941680,9.19781331,135.19,135.13,0.33017812]
[1767616943092,6.98962532,135.19,135.13,0.33017812]
[1767616943292,9.19781331,135.19,135.13,0.33017812]
[1767616943694,6.6614,135.18,135.13,0.33017812]
[1767616944587,9.19891331,135.17,135.1,6.99517812]
[1767616944894,0.32862532,135.16,135.1,0.33017812]
[1767616946593,6.99122532,135.16,135.1,0.33017812]
[1767616948498,0.04922573,135.14,135.09,6.6658]
[1767616948700,0.04922573,135.14,135.08,0.33017812]
[1767616949388,0.04922573,135.14,135.1,0.04822729]
[1767616950393,7.04125105,135.14,135.09,0.33017812]
[1767616953201,9.1869113,135.13,135.07,0.33523695]
[1767616956000,0.31482331,135.12,135.07,0.33523695]
[1767616956695,0.05368779,135.11,135.07,0.33523695]
[1767616963906,0.05368779,135.11,135.07,7.00183695]
[1767616964300,2.5230113,135.14,135.07,0.33523695]
[1767616964703,0.31482331,135.14,135.07,0.33523695]
[1767616965609,0.31482331,135.14,135.08,6.6662]
[1767616966509,0.31482331,135.14,135.08,7.00143695]
[1767616968812,6.97842331,135.14,135.08,7.00143695]
[1767616970911,0.31482331,135.13,135.08,0.33523695]
[1767616971113,0.31482331,135.12,135.07,6.6668]
[1767616971315,0.31482331,135.12,135.07,7.00203695]
[1767616974409,6.97922331,135.12,135.07,0.33523695]
[1767616974609,0.33801742,135.1,135.05,0.32217452]
[1767616975021,0.33801742,135.06,135.0,0.32217452]
[1767616975214,2.20818799,135.05,135.0,0.32217452]
[1767616975414,2.20818799,135.04,135.0,0.32217452]
[1767616975920,90.00620541,135.06,135.0,0.32217452]
[1767616976325,2.20818799,135.04,134.96,0.32217452]
[1767616976719,9.21460541,135.04,134.97,0.32217452]
[1767616977114,9.21460541,135.04,134.97,6.99387452]
[1767616977319,87.79801742,135.04,134.98,0.32217452]
[1767616978117,87.46,135.04,134.98,0.32217452]
[1767616978322,0.33801742,135.03,134.98,0.32217452]
[1767616979423,87.81801742,135.03,134.98,0.32217452]
[1767616982431,87.81801742,135.03,134.97,6.6717]
[1767616982432,2.54881156,135.02,134.97,6.6717]
[1767616982735,2.54881156,135.02,134.96,0.30973556]
[1767616983033,87.5,135.01,134.96,0.30973556]
[1767616983428,87.84062357,135.01,134.96,6.6722]
[1767616983923,0.04692542,135.0,134.97,0.05689734]
[1767616986033,87.88754899,135.0,134.97,0.05689734]
[1767616986941,0.04692542,135.0,134.97,6.72859734]
[1767616987238,87.50465907,135.0,134.97,6.72859734]
[1767616987428,87.50465907,135.0,134.97,0.05689734]
[1767616991939,0.34062357,134.99,134.93,0.30973556]
[1767616992645,87.52,134.98,134.93,6.98343556]
[1767616993238,87.52,134.98,134.94,6.6732]
[1767616993547,87.52,134.98,134.92,0.30973556]
[1767616993548,87.86062357,134.98,134.92,0.30973556]
[1767616993744,87.86062357,134.98,134.93,6.6736]
[1767616994345,87.52,134.99,134.93,6.98333556]
[1767616994740,87.86062357,134.99,134.93,6.98333556]
[1767616995342,87.86062357,134.99,134.93,0.30973556]
[1767616996038,0.34062357,134.99,134.93,6.98343556]
[1767616996241,87.86062357,134.99,134.93,6.98343556]
[1767616996640,0.34062357,134.99,134.93,6.98343556]
[1767616996837,0.34062357,135.02,134.95,0.30973556]
[1767616997042,87.86062357,135.02,134.95,0.30973556]
[1767616997745,87.86062357,135.02,134.96,6.98193556]
[1767616997746,0.34062357,135.02,134.96,6.98193556]
[1767616997939,87.52,135.03,134.97,0.30973556]
[1767616998139,87.86062357,135.03,134.97,0.30973556]
[1767616999547,94.52952357,135.03,134.97,0.30973556]
[1767616999948,0.34062357,135.05,134.98,0.30973556]
[1767617000250,0.34062357,135.04,134.98,0.30973556]
[1767617000451,0.34062357,135.04,135.0,0.04763131]
[1767617000651,0.05071467,135.03,135.0,0.04763131]
[1767617001953,0.39133824,135.03,134.96,0.30973556]
[1767617002246,7.06013824,135.03,134.96,0.30973556]
[1767617002441,0.39133824,135.03,134.96,0.30973556]
[1767617003452,7.00992357,135.02,134.96,0.30973556]
[1767617003752,0.34062357,135.01,134.94,6.98293556]
[1767617004454,0.05434647,134.99,134.94,6.98293556]
[1767617007150,0.05434647,134.99,134.95,0.30973556]
[1767617009056,0.00671516,134.99,134.95,0.30973556]
[1767617010955,0.00671516,134.99,134.95,6.98243556]
[1767617011156,0.00671516,134.99,134.96,0.31233747]
[1767617012248,7.00982357,135.03,134.97,0.31233747]
[1767617014456,7.00982357,135.03,134.97,6.98403747]
[1767617015553,7.00982357,135.03,134.98,0.31233747]
[1767617017453,0.34062357,135.03,134.98,0.31233747]
[1767617019262,0.34062357,135.03,134.98,6.98363747]
[1767617022258,0.34062357,135.03,134.99,6.6707]
[1767617023062,0.33374361,135.05,134.99,0.31233747]
[1767617023256,87.52,135.07,134.99,0.31233747]
[1767617023557,3.46029264,135.08,134.99,0.31233747]
[1767617023860,3.79403625,135.08,134.99,0.31233747]
[1767617024058,0.33374361,135.07,134.99,0.31233747]
[1767617024562,0.33374361,135.07,135.0,6.6698]
[1767617024956,0.33374361,135.05,134.97,0.31233747]
[1767617025261,0.38482205,135.05,134.99,6.6707]
[1767617025558,0.38482205,135.05,135.0,0.05583257]
[1767617027264,0.33374361,135.04,135.0,0.05583257]
[1767617030565,7.00214361,135.04,135.0,0.05583257]
[1767617030867,0.33374361,135.03,134.97,6.6717]
[1767617031567,7.00274361,135.03,134.97,6.6717]
[1767617031765,0.33374361,135.02,134.97,6.6717]
[1767617032262,0.04722438,135.01,134.97,6.6717]
[1767617033669,0.04722438,135.01,134.96,6.6722]
[1767617037472,0.04722438,135.01,134.96,7.00502477]
[1767617040067,0.34097755,135.04,134.97,7.00452477]
[1767617040769,0.34097755,135.04,134.98,6.6712]
[1767617041972,7.00947755,135.04,134.98,6.6712]
[1767617042169,0.04740211,135.02,134.98,6.6712]
[1767617044471,0.04740211,135.02,134.99,6.6708]
[1767617044970,0.04740211,135.02,134.99,6.9822419]
[1767617045168,0.04740211,135.02,135.0,6.6701]
[1767617045370,0.04740211,135.02,134.99,0.3114419]
[1767617046471,0.32923061,135.06,135.0,0.3114419]
[1767617046870,0.32923061,135.08,135.0,0.3114419]
[1767617047177,0.32923061,135.07,135.0,0.3114419]
[1767617047977,0.32923061,135.07,135.02,0.04776255]
[1767617048172,0.32923061,135.07,135.02,0.35920445]
[1767617049175,0.32923061,135.09,135.03,0.3114419]
[1767617050667,6.99503061,135.09,135.03,0.3114419]
[1767617051271,0.32923061,135.09,135.03,0.3114419]
[1767617052574,24.50571016,135.1,135.05,0.3114419]
[1767617053276,24.50571016,135.1,135.06,0.05672546]
[1767617053779,24.83494077,135.1,135.06,0.05672546]
[1767617054674,0.32923061,135.08,135.01,0.3114419]
[1767617056081,0.04873735,135.06,135.01,0.3114419]
[1767617057580,0.04873735,135.06,135.01,6.9812419]
[1767617058477,0.04873735,135.06,135.02,0.3114419]
[1767617062379,0.37796796,135.06,135.0,0.3114419]
[1767617063087,2.21280574,135.05,135.0,0.3114419]
[1767617063886,2.21280574,135.05,134.98,0.3114419]
[1767617063887,0.32923061,135.04,134.98,0.3114419]
[1767617064283,0.32923061,135.04,135.01,0.05439595]
[1767617064685,0.05147501,135.02,135.01,0.05439595]
[1767617071992,0.05147501,135.02,134.98,6.9827419]
[1767617075598,0.05147501,135.02,134.98,0.3114419]
[1767617075890,0.38647027,135.02,134.96,6.99191913]
[1767617082812,0.38647027,135.02,134.97,0.32011913]
[1767617089115,0.38647027,135.02,134.97,6.99181913]
[1767617089317,0.38647027,135.02,134.97,0.32011913]
[1767617089619,0.05147501,135.02,134.97,0.32011913]
[1767617090715,0.05147501,135.02,134.98,0.32011913]
[1767617091212,0.05147501,135.02,134.99,0.32011913]
[1767617093217,0.33499526,135.06,134.99,6.99081913]
[1767617093417,0.33499526,135.06,135.0,0.32686771]
[1767617094518,0.05299121,135.04,135.0,6.99716771]
[1767617097822,0.38388833,135.04,134.99,0.05217731]
[1767617100424,0.05299121,135.04,135.0,0.32686771]
[1767617101627,0.05299121,135.04,135.0,6.99696771]
[1767617110934,0.05299121,135.04,135.0,0.32686771]
[1767617113335,6.99245386,135.08,135.01,0.31698772]
[1767617113638,87.84575386,135.1,135.01,0.31698772]
[1767617113839,5.56840426,135.09,135.01,0.31698772]
[1767617114139,87.84575386,135.1,135.01,0.31698772]
[1767617114641,6.6659,135.09,135.03,0.31698772]
[1767617114939,6.6659,135.09,135.04,0.05541161]
[1767617116039,6.99165386,135.09,135.04,0.05541161]
[1767617116542,6.6664,135.08,135.04,0.05541161]
[1767617116842,0.32575386,135.07,135.01,0.31698772]
[1767617117139,0.38014512,135.07,135.01,0.31698772]
[1767617117535,0.05439126,135.07,135.03,0.31698772]
[1767617117935,0.05439126,135.07,135.04,0.31698772]
[1767617118130,94.1858,135.1,135.04,0.31698772]
[1767617118336,6.6658,135.1,135.04,0.36938204]
[1767617118935,33.67078687,135.11,135.05,0.31698772]
[1767617120643,40.33568687,135.11,135.05,0.31698772]
[1767617121039,0.32575386,135.11,135.05,0.31698772]
[1767617121338,6.6644,135.12,135.06,0.31698772]
[1767617121946,6.99065386,135.11,135.04,0.31698772]
[1767617122149,6.99065386,135.11,135.08,0.05116204]
[1767617122732,0.32575386,135.09,135.03,0.31698772]
[1767617123637,6.99165386,135.09,135.03,0.31698772]
[1767617124049,0.04827209,135.07,135.03,0.31698772]
[1767617125241,0.04827209,135.07,135.04,0.31698772]
[1767617127353,0.04827209,135.07,135.04,6.98518772]
[1767617127845,125.87336651,135.19,135.05,0.31698772]